bitfinex/quotes_SOLUSD_20241126
["timestamp","ask_amount","ask_price","bid_price","bid_amount"]
[1732646728029,1.52e-05,225.66,225.65,57.5230023]
[1732646728226,1.52e-05,225.66,225.65,61.9546023]
[1732646728632,1.52e-05,225.66,225.65,38.1777183]
[1732646728841,1.52e-05,225.66,225.65,61.9546023]
[1732646729738,1.52e-05,225.66,225.65,38.1777183]
[1732646730123,1.52e-05,225.66,225.65,61.9546023]
[1732646731343,1.52e-05,225.66,225.65,38.1777183]
[1732646731530,1.52e-05,225.66,225.65,61.9546023]
[1732646732430,1.52e-05,225.66,225.65,48.94314809]
[1732646732632,20.73466409,225.9,225.7,48.776884]
[1732646732854,20.73466409,225.9,225.83,20.73466409]
[1732646733056,4.4251,225.99,225.82,43.776884]
[1732646733226,1.52e-05,225.88,225.83,0.12549]
[1732646733425,1.52e-05,225.88,225.86,20.0]
[1732646733744,1.52e-05,225.88,225.87,43.776884]
[1732646734128,1.52e-05,225.88,225.87,64.51154809]
[1732646734334,1.52e-05,225.88,225.87,81.82643436]
[1732646734855,1.52e-05,225.88,225.87,58.04955036]
[1732646737733,1.52e-05,225.88,225.87,81.82643436]
[1732646738058,1.52e-05,225.88,225.87,86.82643436]
[1732646738247,64.77863334,226.05,225.9,5.0]
[1732646738451,64.77863334,226.05,225.99,33.62225036]
[1732646739035,64.77863334,226.05,226.01,33.62225036]
[1732646739455,64.77863334,226.05,226.0,33.62225036]
[1732646739637,50.0,226.05,226.0,33.62225036]
[1732646740152,50.0,226.05,225.94,33.62225036]
[1732646740153,50.0,226.05,226.01,33.62225036]
[1732646740348,50.0,226.05,225.96,20.0]
[1732646740349,50.0,226.05,226.0,33.62225036]
[1732646740758,50.0,226.05,225.98,20.0]
[1732646740964,50.0,226.05,226.04,33.62225036]
[1732646742441,50.0,226.05,226.04,38.04615036]
[1732646742746,50.0,226.05,226.04,33.62225036]
[1732646743858,50.0,226.05,225.97,11.0634]
[1732646743859,83.62225036,226.05,225.99,33.62225036]
[1732646744355,33.62225036,226.03,225.96,38.04765036]
[1732646744563,50.0,226.05,225.96,38.04765036]
[1732646744564,33.62225036,226.02,225.96,38.04765036]
[1732646744860,50.0,226.05,225.96,38.04775036]
[1732646745030,33.62225036,226.03,225.96,38.04775036]
[1732646745234,33.62225036,225.98,225.92,33.62225036]
[1732646745434,33.62225036,225.96,225.89,33.62225036]
[1732646745646,28.776884,226.04,225.83,4.4281]
[1732646745844,28.776884,226.04,225.79,4.4288]
[1732646745845,23.776884,225.95,225.79,4.4288]
[1732646746046,20.0,225.92,225.79,4.4288]
[1732646746262,23.776884,226.0,225.79,9.4288]
[1732646746446,23.776884,226.0,225.75,22.148]
[1732646746661,23.776884,225.98,225.75,37.6517]
[1732646746849,33.62225036,225.91,225.84,33.62225036]
[1732646747364,33.62225036,225.86,225.79,33.62225036]
[1732646747567,33.62225036,225.85,225.78,33.62225036]
[1732646747737,33.62225036,225.8,225.67,8.5498]
[1732646747937,33.62225036,225.8,225.68,5.0]
[1732646748157,8.1258,225.9,225.72,5.0]
[1732646748344,20.8565,225.92,225.72,5.0]
[1732646748542,8.1258,225.97,225.77,15.5024]
[1732646748765,12.5511,225.97,225.77,15.5024]
[1732646749065,33.62225036,225.92,225.86,33.62225036]
[1732646749236,20.8565,226.0,225.88,33.62225036]
[1732646749237,33.62225036,225.94,225.88,33.62225036]
[1732646749436,33.62225036,225.94,225.8,5.0]
[1732646749437,33.62225036,225.94,225.87,33.62225036]
[1732646749637,33.62225036,225.93,225.87,33.62225036]
[1732646749863,33.62225036,225.92,225.88,20.0]
[1732646750062,4.425,225.99,225.87,20.0]
[1732646750370,33.62225036,225.93,225.86,53.62225036]
[1732646750542,33.62225036,225.92,225.86,58.04965036]
[1732646751269,33.62225036,225.94,225.88,33.62225036]
[1732646751452,33.62225036,225.96,225.9,33.62225036]
[1732646751649,33.62225036,225.95,225.88,33.62225036]
[1732646751847,33.62225036,225.94,225.87,33.62225036]
[1732646752159,25.2813,226.0,225.86,58.04965036]
[1732646752160,33.62225036,225.93,225.86,58.04965036]
[1732646752357,33.62225036,225.94,225.88,33.62225036]
[1732646752860,33.62225036,225.94,225.87,33.62225036]
[1732646753157,33.62225036,225.96,225.91,20.0]
[1732646753358,33.62225036,225.94,225.88,33.62225036]
[1732646753655,33.62225036,225.93,225.87,33.62225036]
[1732646754261,12.8142,226.04,225.89,33.62225036]
[1732646754262,33.62225036,225.96,225.89,33.62225036]
[1732646754468,12.8142,226.04,225.88,33.62225036]
[1732646754773,33.62225036,225.93,225.89,20.0]
[1732646754939,33.62225036,225.93,225.89,24.4269]
[1732646755547,33.62225036,225.94,225.89,4.4269]
[1732646755963,33.62225036,225.93,225.89,4.4269]
[1732646756563,33.62225036,225.92,225.87,4.4271]
[1732646757155,33.62225036,225.97,225.94,20.0]
[1732646757353,33.62225036,225.99,225.95,20.0]
[1732646757661,8.3901,226.04,225.95,20.0]
[1732646757662,33.62225036,226.0,225.97,20.0]
[1732646758045,33.62225036,225.98,225.97,20.0]
[1732646758260,33.62225036,225.98,225.91,33.62225036]
[1732646758466,33.62225036,226.0,225.96,20.0]
[1732646759051,83.62225036,226.05,225.96,58.04765036]
[1732646759052,33.62225036,226.02,225.96,58.04765036]
[1732646759349,50.0,226.05,225.98,33.62225036]
[1732646759350,33.62225036,226.04,225.98,33.62225036]
[1732646759563,33.62225036,226.0,225.96,20.0]
[1732646759752,88.04605036,226.05,225.96,20.0]
[1732646759952,33.62225036,226.01,225.96,4.4255]
[1732646760154,33.62225036,226.02,225.99,20.0]
[1732646760951,33.62225036,226.03,225.99,20.0]
[1732646761152,33.62225036,226.04,226.0,20.0]
[1732646761359,83.62225036,226.05,226.01,20.0]
[1732646761773,33.62225036,226.02,225.99,20.0]
[1732646761956,50.0,226.05,225.91,11.0659]
[1732646761957,33.62225036,226.0,225.98,20.0]
[1732646762154,33.62225036,226.01,225.98,20.0]
[1732646762355,33.62225036,225.99,225.98,20.0]
[1732646762575,33.62225036,225.99,225.89,4.4269]
[1732646762873,23.776884,225.97,225.8,4.4286]
[1732646763075,23.776884,225.97,225.7,8.2297]
[1732646763076,33.62225036,225.81,225.76,4.4294]
[1732646763246,33.62225036,225.81,225.75,33.62225036]
[1732646763447,33.62225036,225.78,225.72,33.62225036]
[1732646763680,33.62225036,225.78,225.71,4.4304]
[1732646763681,33.62225036,225.81,225.75,33.62225036]
[1732646763877,33.62225036,225.86,225.79,33.62225036]
[1732646764066,33.62225036,225.88,225.72,33.62225036]
[1732646764380,10.0,226.01,225.72,33.62225036]
[1732646764381,5.0,225.96,225.73,21.2384]
[1732646764869,4.425,225.99,225.75,5.0]
[1732646765078,21.9331,226.02,225.78,5.0]
[1732646765375,33.62225036,226.0,225.93,33.62225036]
[1732646765560,33.62225036,225.98,225.91,33.62225036]
[1732646765880,96.43615036,226.05,225.88,20.0]
[1732646765881,33.62225036,225.95,225.88,20.0]
[1732646766054,96.43615036,226.05,225.88,20.0]
[1732646766252,96.43615036,226.05,225.98,20.0]
[1732646766253,33.62225036,226.02,225.98,20.0]
[1732646766459,50.0,226.05,225.89,5.0]
[1732646766460,33.62225036,225.99,225.89,33.62225036]
[1732646766664,5.0,226.03,225.81,23.776884]
[1732646766968,5.0,226.03,225.84,20.0]
[1732646767177,4.4239,226.04,225.85,15.4969]
[1732646767351,23.776884,226.03,225.88,20.0]
[1732646767550,33.62225036,225.99,225.93,33.62225036]
[1732646767749,33.62225036,226.01,225.95,33.62225036]
[1732646767979,33.62225036,226.03,225.96,33.62225036]
[1732646768155,50.0,226.05,226.04,20.0]
[1732646768656,50.0,226.05,226.04,53.62225036]
[1732646768850,50.0,226.05,226.04,33.62225036]
[1732646769272,46.3377,226.05,226.04,38.04615036]
[1732646769477,46.3377,226.05,226.04,4.4239]
[1732646769665,79.95995036,226.05,226.03,20.0]
[1732646769974,33.62225036,226.04,225.99,20.0]
[1732646770162,46.3377,226.05,225.99,20.0]
[1732646770476,33.62225036,226.04,225.99,20.0]
[1732646770674,33.62225036,226.04,226.0,20.0]
[1732646770882,46.3377,226.05,226.0,53.62225036]
[1732646771064,46.3377,226.05,225.96,15.4893]
[1732646771065,46.3377,226.05,226.04,53.62225036]
[1732646771269,46.3377,226.05,226.04,58.04615036]
[1732646771463,46.3377,226.05,226.04,24.4239]
[1732646771777,46.3377,226.05,226.04,38.04615036]
[1732646771965,46.3377,226.05,226.04,4.4239]
[1732646772171,46.3377,226.05,226.04,20.0]
[1732646772354,46.3377,226.05,226.03,58.04625036]
[1732646772676,79.95995036,226.05,226.03,20.0]
[1732646772978,46.3377,226.05,226.03,58.04635036]
[1732646773160,46.3377,226.05,226.04,33.62225036]
[1732646773856,46.3377,226.05,226.03,58.04635036]
[1732646774168,46.3377,226.05,226.04,53.62225036]
[1732646776589,1.52e-05,226.11,226.04,120.04537472]
[1732646776757,1.52e-05,226.11,226.1,57.39913436]
[1732646776963,1.52e-05,226.11,226.1,33.62225036]
[1732646777167,1.52e-05,226.11,226.1,20.0]
[1732646777459,1.52e-05,226.11,226.1,53.62225036]
[1732646777893,1.52e-05,226.11,226.1,20.0]
[1732646778076,33.62226556,226.11,226.07,4.4232]
[1732646778271,33.62225036,226.1,226.07,4.4232]
[1732646778472,1.52e-05,226.11,226.05,4.4237]
[1732646778473,33.62225036,226.08,226.05,4.4237]
[1732646778668,33.62225036,226.08,226.03,4.424]
[1732646778865,1.52e-05,226.11,226.06,33.62225036]
[1732646779162,1.52e-05,226.11,226.03,4.424]
[1732646779163,1.52e-05,226.11,226.07,33.62225036]
[1732646779586,1.52e-05,226.11,226.03,4.424]
[1732646779882,1.52e-05,226.11,226.1,33.62225036]
[1732646780090,1.52e-05,226.11,226.1,38.04505036]
[1732646783678,1.52e-05,226.11,226.08,4.423]
[1732646783871,1.52e-05,226.11,226.08,38.04525036]
[1732646784582,1.52e-05,226.11,226.08,4.423]
[1732646785366,33.62226556,226.11,226.06,4.4234]
[1732646785570,33.62225036,226.1,226.04,4.4238]
[1732646785900,33.62225036,226.1,225.91,48.3702]
[1732646785901,33.62225036,226.05,225.98,4.425]
[1732646786189,20.2914,226.1,225.92,5.0]
[1732646786367,23.776884,226.09,225.92,5.0]
[1732646786571,53.91365036,226.1,226.04,33.62225036]
[1732646786784,20.2914,226.1,226.05,33.62225036]
[1732646786979,53.91365036,226.1,226.04,33.62225036]
[1732646787180,33.62225036,226.08,226.05,20.0]
[1732646787780,33.62225036,226.09,226.05,20.0]
[1732646788080,33.62225036,226.07,225.94,33.62225036]
[1732646788277,53.91365036,226.1,226.04,33.62225036]
[1732646788478,53.91365036,226.1,226.03,33.62225036]
[1732646788682,53.91365036,226.1,225.98,11.0626]
[1732646788683,20.2914,226.1,226.05,33.62225036]
[1732646788987,1.52e-05,226.11,226.02,5.0]
[1732646789186,1.52e-05,226.11,226.1,33.62225036]
[1732646790177,1.52e-05,226.11,226.1,38.04505036]
[1732646792071,1.52e-05,226.11,226.1,61.82193436]
[1732646792277,1.52e-05,226.11,226.1,66.94742436]
[1732646792473,1.52e-05,226.11,226.1,38.04505036]
[1732646792695,1.52e-05,226.11,226.1,66.94742436]
[1732646793705,1.52e-05,226.11,226.1,61.82193436]
[1732646794578,1.52e-05,226.11,226.1,38.04505036]
[1732646796211,1.52e-05,226.11,226.1,43.04505036]
[1732646796418,21.5313,226.31,226.14,20.0]
[1732646796419,20.64191753,226.27,226.14,20.0]
[1732646796715,20.64191753,226.25,226.19,20.64191753]
[1732646797088,20.64191753,226.23,226.21,20.0]
[1732646797300,20.64191753,226.22,226.14,20.64191753]
[1732646797487,25.64191753,226.27,226.13,20.64191753]
[1732646797488,20.64191753,226.19,226.13,20.64191753]
[1732646797798,20.64191753,226.2,226.14,20.64191753]
[1732646798117,32.578,226.31,226.17,20.64191753]
[1732646798303,20.64191753,226.26,226.2,20.64191753]
[1732646798898,20.64191753,226.27,226.2,20.64191753]
[1732646799208,20.64191753,226.3,226.24,40.64191753]
[1732646799441,20.64191753,226.28,226.25,20.0]
[1732646799717,20.64191753,226.29,226.25,20.0]
[1732646799904,21.5313,226.31,226.27,20.64191753]
[1732646800101,21.5313,226.31,226.26,4.4195]
[1732646800102,21.5313,226.31,226.26,25.06141753]
[1732646800306,21.5313,226.31,226.26,37.95139553]
[1732646800496,21.5313,226.31,226.28,33.53189553]
[1732646800688,21.5313,226.31,226.26,20.0]
[1732646801196,33.53189553,226.3,226.27,20.0]
[1732646801504,21.5313,226.31,226.27,33.53189553]
[1732646801712,21.5313,226.31,226.26,33.53189553]
[1732646801934,0.5369152,226.33,226.3,33.53189553]
[1732646802105,1.52e-05,226.33,226.32,20.0]
[1732646802491,1.52e-05,226.33,226.32,33.53189553]
[1732646805625,33.53189553,226.52,226.36,25.0]
[1732646805918,33.53189553,226.54,226.47,33.53189553]
[1732646806124,33.53189553,226.54,226.38,33.53189553]
[1732646806125,33.53189553,226.55,226.5,20.0]
[1732646806329,0.5369152,226.56,226.51,53.53189553]
[1732646806701,0.5369152,226.56,226.51,20.0]
[1732646807005,0.5369152,226.56,226.5,33.53189553]
[1732646807527,34.06881073,226.56,226.49,33.53189553]
[1732646807712,34.06881073,226.56,226.5,33.53189553]
[1732646808015,34.06881073,226.56,226.49,37.94699553]
[1732646808608,34.06881073,226.56,226.5,33.53189553]
[1732646809113,0.5369152,226.56,226.5,33.53189553]
[1732646809311,0.5369152,226.56,226.45,20.0]
[1732646809312,33.53189553,226.52,226.45,37.94779553]
[1732646809516,33.53189553,226.51,226.48,20.0]
[1732646809823,33.53189553,226.49,226.41,33.53189553]
[1732646810120,33.53189553,226.48,226.42,33.53189553]
[1732646810425,33.53189553,226.51,226.45,33.53189553]
[1732646810721,33.53189553,226.5,226.43,33.53189553]
[1732646810914,33.53189553,226.5,226.44,33.53189553]
[1732646811113,33.53189553,226.5,226.39,4.4171]
[1732646811114,33.53189553,226.52,226.48,20.0]
[1732646811314,33.53189553,226.52,226.39,4.4171]
[1732646811315,0.5369152,226.56,226.52,20.0]
[1732646811927,34.06881073,226.56,226.52,20.0]
[1732646812328,0.5369152,226.56,226.52,57.94629553]
[1732646812628,33.53189553,226.53,226.46,33.53189553]
[1732646812804,0.5369152,226.56,226.45,37.94769553]
[1732646812999,4.9508152,226.56,226.46,33.53189553]
[1732646813205,33.53189553,226.54,226.48,33.53189553]
[1732646813400,0.5369152,226.56,226.51,33.53189553]
[1732646813701,0.5369152,226.56,226.53,33.53189553]
[1732646814220,0.5369152,226.56,226.52,4.4145]
[1732646814409,0.5369152,226.56,226.52,57.94639553]
[1732646814605,0.5369152,226.56,226.53,33.53189553]
[1732646814932,0.5369152,226.56,226.52,24.4145]
[1732646814933,0.5369152,226.56,226.55,33.53189553]
[1732646815637,5.0,226.77,226.58,20.0]
[1732646815802,33.53189553,226.72,226.65,33.53189553]
[1732646815999,33.53189553,226.71,226.64,33.53189553]
[1732646816218,33.53189553,226.75,226.68,33.53189553]
[1732646816528,33.53189553,226.73,226.67,33.53189553]
[1732646817017,33.53189553,226.72,226.65,33.53189553]
[1732646817217,33.53189553,226.74,226.67,33.53189553]
[1732646817538,33.53189553,226.75,226.68,33.53189553]
[1732646817910,33.53189553,226.73,226.66,33.53189553]
[1732646818119,33.53189553,226.71,226.64,33.53189553]
[1732646818314,33.53189553,226.71,226.67,20.0]
[1732646818624,33.53189553,226.72,226.67,20.0]
[1732646818810,33.53189553,226.71,226.67,20.0]
[1732646819013,33.53189553,226.72,226.66,33.53189553]
[1732646819216,33.53189553,226.74,226.68,33.53189553]
[1732646819530,4.4095,226.78,226.63,4.4124]
[1732646819531,33.53189553,226.76,226.7,33.53189553]
[1732646824036,5.0,226.66,226.5,33.53189553]
[1732646824337,70.0,226.71,226.57,33.53189553]
[1732646824338,57.30877953,226.63,226.57,33.53189553]
[1732646824702,33.53189553,226.61,226.54,33.53189553]
[1732646824923,23.776884,226.63,226.49,4.4151]
[1732646825132,33.53189553,226.59,226.53,33.53189553]
[1732646825530,33.53189553,226.6,226.54,33.53189553]
[1732646825833,4.413,226.61,226.46,4.4157]
[1732646825834,33.53189553,226.58,226.52,33.53189553]
[1732646826224,33.53189553,226.58,226.46,15.4551]
[1732646826225,33.53189553,226.61,226.55,33.53189553]
[1732646826530,33.53189553,226.59,226.53,33.53189553]
[1732646826733,23.776884,226.62,226.49,20.0]
[1732646826947,33.53189553,226.55,226.48,33.53189553]
[1732646827108,21.1193,226.58,226.54,33.53189553]
[1732646827308,33.53189553,226.62,226.56,33.53189553]
[1732646827616,21.1193,226.65,226.61,33.53189553]
[1732646827815,4.4112,226.7,226.64,33.53189553]
[1732646827816,33.53189553,226.7,226.64,33.53189553]
[1732646828023,33.53189553,226.71,226.64,33.53189553]
[1732646828242,42.26029553,226.72,226.65,33.53189553]
[1732646828534,33.53189553,226.72,226.65,33.53189553]
[1732646829117,33.53189553,226.66,226.59,33.53189553]
[1732646829457,33.53189553,226.67,226.6,33.53189553]
[1732646829615,33.53189553,226.68,226.61,33.53189553]
[1732646829815,33.53189553,226.67,226.6,33.53189553]
[1732646830044,21.1193,226.73,226.56,15.4483]
[1732646830337,21.1193,226.73,226.57,5.0]
[1732646830534,21.1193,226.73,226.59,20.0]
[1732646831127,54.65119553,226.73,226.66,33.53189553]
[1732646831323,21.1193,226.73,226.69,33.53189553]
[1732646831515,33.53189553,226.74,226.67,33.53189553]
[1732646831738,33.53189553,226.71,226.63,33.53189553]
[1732646831924,33.53189553,226.69,226.62,33.53189553]
[1732646832118,33.53189553,226.7,226.64,33.53189553]
[1732646832343,20.56678844,226.71,226.64,20.56678844]
[1732646833137,20.56678844,226.71,226.53,13.4653]
[1732646833138,20.56678844,226.75,226.68,20.56678844]
[1732646833526,4.4096,226.78,226.66,20.56678844]
[1732646833527,20.56678844,226.74,226.66,20.56678844]
[1732646833847,20.56678844,226.73,226.66,20.56678844]
[1732646834044,20.56678844,226.73,226.62,15.4442]
[1732646834045,20.56678844,226.72,226.65,20.56678844]
[1732646834236,20.56678844,226.67,226.6,24.97958844]
[1732646834432,20.56678844,226.66,226.59,24.97998844]
[1732646834633,20.56678844,226.65,226.58,20.56678844]
[1732646834825,20.56678844,226.66,226.59,20.56678844]
[1732646835030,20.56678844,226.68,226.61,20.56678844]
[1732646835244,20.56678844,226.7,226.63,20.56678844]
[1732646835422,20.56678844,226.7,226.61,4.4126]
[1732646835423,20.56678844,226.68,226.61,20.56678844]
[1732646835747,20.56678844,226.67,226.61,20.56678844]
[1732646836057,5.0,226.73,226.55,4.414]
[1732646836058,8.9643152,226.79,226.66,20.56678844]
[1732646836232,0.5369152,226.79,226.63,20.0]
[1732646836545,0.5369152,226.79,226.64,20.0]
[1732646837149,0.5369152,226.79,226.77,20.56678844]
[1732646837451,0.5369152,226.79,226.73,20.56678844]
[1732646837749,20.56678844,226.78,226.71,20.56678844]
[1732646837927,21.10370364,226.79,226.72,20.56678844]
[1732646838127,0.5369152,226.79,226.74,20.56678844]
[1732646838345,0.5369152,226.79,226.76,20.56678844]
[1732646838651,21.10370364,226.79,226.72,20.56678844]
[1732646838855,0.5369152,226.79,226.74,20.56678844]
[1732646839146,0.5369152,226.79,226.76,20.56678844]
[1732646839353,0.5369152,226.79,226.74,20.56678844]
[1732646839536,0.5369152,226.79,226.76,20.56678844]
[1732646839727,0.5369152,226.79,226.75,20.56678844]
[1732646840151,0.5369152,226.79,226.76,20.56678844]
[1732646840328,0.5369152,226.79,226.75,20.56678844]
[1732646840529,4.9463152,226.79,226.73,20.56678844]
[1732646840834,0.5369152,226.79,226.74,20.56678844]
[1732646841046,0.5369152,226.79,226.68,4.4115]
[1732646841047,0.5369152,226.79,226.78,20.56678844]
[1732646842555,0.5369152,226.79,226.77,20.56678844]
[1732646842857,0.5369152,226.79,226.75,20.56678844]
[1732646843029,25.51310364,226.79,226.73,20.56678844]
[1732646843330,0.5369152,226.79,226.74,20.56678844]
[1732646843727,4.9463152,226.79,226.71,4.4109]
[1732646843960,20.56678844,226.77,226.71,20.56678844]
[1732646844129,20.56678844,226.76,226.7,20.56678844]
[1732646844333,25.51310364,226.79,226.72,20.56678844]
[1732646844650,20.56678844,226.78,226.71,20.56678844]
[1732646844829,21.10370364,226.79,226.73,20.56678844]
[1732646845358,20.56678844,226.78,226.71,20.56678844]
[1732646845642,20.56678844,226.73,226.66,20.56678844]
[1732646845856,20.56678844,226.69,226.63,20.56678844]
[1732646846056,5.0,226.76,226.63,20.56678844]
[1732646846057,20.56678844,226.7,226.63,20.56678844]
[1732646846259,20.56678844,226.68,226.62,20.56678844]
[1732646846431,20.56678844,226.68,226.61,20.56678844]
[1732646846627,20.56678844,226.67,226.6,20.56678844]
[1732646846834,20.56678844,226.67,226.61,20.56678844]
[1732646847032,20.56678844,226.65,226.59,20.56678844]
[1732646847235,20.56678844,226.67,226.6,20.56678844]
[1732646847549,22.8648,226.73,226.64,20.56678844]
[1732646847550,20.56678844,226.71,226.64,20.56678844]
[1732646847752,20.56678844,226.7,226.64,20.56678844]
[1732646847929,20.56678844,226.67,226.61,20.56678844]
[1732646848129,15.4375,226.72,226.63,20.56678844]
[1732646848130,20.56678844,226.69,226.63,20.56678844]
[1732646848349,20.56678844,226.69,226.62,20.56678844]
[1732646848553,20.56678844,226.66,226.6,20.56678844]
[1732646848936,20.56678844,226.67,226.6,20.56678844]
[1732646849454,4.4116,226.67,226.61,20.56678844]
[1732646849956,24.97838844,226.67,226.6,20.56678844]
[1732646850329,4.4116,226.67,226.62,20.56678844]
[1732646850554,4.4116,226.67,226.61,20.56678844]
[1732646850753,4.4116,226.67,226.63,20.56678844]
[1732646851047,20.56678844,226.71,226.65,20.56678844]
[1732646851248,22.8648,226.73,226.55,15.449]
[1732646851249,22.8648,226.73,226.69,20.56678844]
[1732646851458,22.8648,226.73,226.6,20.56678844]
[1732646851459,4.41,226.76,226.7,20.56678844]
[1732646851760,4.41,226.76,226.66,4.4117]
[1732646851935,20.56678844,226.74,226.67,20.56678844]
[1732646852457,20.56678844,226.68,226.6,20.56678844]
[1732646852653,20.56678844,226.66,226.59,20.56678844]
[1732646852960,20.56678844,226.65,226.59,20.56678844]
[1732646853137,20.56678844,226.67,226.61,20.56678844]
[1732646853334,20.56678844,226.67,226.6,20.56678844]
[1732646853631,4.4118,226.66,226.61,20.56678844]
[1732646853842,4.4118,226.66,226.6,20.56678844]
[1732646854049,24.97858844,226.66,226.6,20.56678844]
[1732646854252,20.56678844,226.65,226.58,20.56678844]
[1732646854458,24.97858844,226.66,226.59,20.56678844]
[1732646854846,24.97858844,226.66,226.51,13.5926871]
[1732646854847,20.56678844,226.6,226.53,20.56678844]
[1732646855046,20.56678844,226.59,226.52,20.56678844]
[1732646855250,22.0675,226.64,226.56,20.56678844]
[1732646855435,4.4124,226.63,226.49,4.4152]
[1732646855641,15.4435,226.63,226.49,4.4152]
[1732646855946,15.4435,226.63,226.48,22.3112871]
[1732646855947,15.4435,226.63,226.48,13.1339]
[1732646856146,15.4435,226.63,226.51,20.0]
[1732646856447,4.4124,226.63,226.51,20.0]
[1732646856662,20.56678844,226.61,226.54,20.56678844]
[1732646857339,20.56678844,226.62,226.55,20.56678844]
[1732646857665,24.97918844,226.63,226.57,20.56678844]
[1732646857838,20.56678844,226.62,226.55,20.56678844]
[1732646858239,29.31528844,226.62,226.55,20.56678844]
[1732646858469,29.31528844,226.62,226.48,20.56678844]
[1732646858470,20.56678844,226.56,226.48,20.56678844]
[1732646858757,20.56678844,226.55,226.49,20.56678844]
[1732646858962,20.56678844,226.57,226.5,20.56678844]
[1732646859540,20.56678844,226.57,226.4,35.9039742]
[1732646859541,4.4128,226.61,226.55,20.56678844]
[1732646859847,4.4128,226.61,226.45,11.0399]
[1732646859848,20.56678844,226.59,226.52,20.56678844]
[1732646860658,20.56678844,226.6,226.53,20.56678844]
[1732646860862,24.97958844,226.61,226.55,20.56678844]
[1732646861049,4.4128,226.61,226.56,20.56678844]
[1732646861252,20.56678844,226.63,226.56,20.56678844]
[1732646861441,4.4126,226.63,226.57,20.56678844]
[1732646861965,26.4797,226.64,226.59,20.56678844]
[1732646862264,26.4797,226.64,226.55,4.4139]
[1732646862265,26.4797,226.64,226.6,20.56678844]
[1732646862478,5.0,226.71,226.63,20.56678844]
[1732646862479,4.411,226.71,226.63,20.56678844]
[1732646862765,20.56678844,226.77,226.7,20.56678844]
[1732646862969,8.25555255,226.76,226.7,20.56678844]
[1732646863262,20.56678844,226.75,226.68,20.56678844]
[1732646863653,20.56678844,226.78,226.71,20.56678844]
[1732646864265,0.5369152,226.79,226.75,20.56678844]
[1732646864444,0.5369152,226.79,226.76,20.56678844]
[1732646865353,0.5369152,226.79,226.75,20.56678844]
[1732646865566,25.51320364,226.79,226.72,20.56678844]
[1732646865949,20.56678844,226.76,226.69,20.56678844]
[1732646866267,30.26894373,226.76,226.57,4.4134]
[1732646866565,25.26894373,226.76,226.57,4.4134]
[1732646866740,5.26894373,226.76,226.57,4.4134]
[1732646867140,5.26894373,226.76,226.57,15.4475]
[1732646867360,20.56678844,226.72,226.65,20.56678844]
[1732646867543,20.56678844,226.72,226.6,20.56678844]
[1732646867544,20.56678844,226.7,226.64,20.56678844]
[1732646867745,20.56678844,226.67,226.6,20.56678844]
[1732646868048,20.56678844,226.68,226.61,20.56678844]
[1732646868571,22.4239,226.71,226.56,15.4484]
[1732646868772,22.4239,226.71,226.66,20.56678844]
[1732646868951,4.4107,226.72,226.66,20.56678844]
[1732646869272,4.4107,226.72,226.67,20.56678844]
[1732646869652,24.97728844,226.73,226.66,20.56678844]
[1732646870166,4.4105,226.73,226.67,20.56678844]
[1732646870465,20.56678844,226.74,226.63,4.4124]
[1732646870466,20.56678844,226.76,226.7,20.56678844]
[1732646870766,42.99068844,226.77,226.7,20.56678844]
[1732646870965,20.56678844,226.76,226.7,20.56678844]
[1732646871349,42.99068844,226.77,226.71,20.56678844]
[1732646871662,42.99068844,226.77,226.63,4.4124]
[1732646871663,20.56678844,226.73,226.66,20.56678844]
[1732646872368,20.56678844,226.72,226.66,20.56678844]
[1732646872757,20.56678844,226.73,226.66,20.56678844]
[1732646872974,20.56678844,226.72,226.66,20.56678844]
[1732646873762,20.56678844,226.75,226.69,20.56678844]
[1732646873965,22.4239,226.77,226.73,20.56678844]
[1732646874266,22.4239,226.77,226.72,20.56678844]
[1732646874490,26.8336,226.77,226.72,20.56678844]
[1732646874660,22.4239,226.77,226.73,20.56678844]
[1732646874852,4.4095,226.78,226.74,20.56678844]
[1732646875957,4.4095,226.78,226.75,20.56678844]
[1732646876165,4.4095,226.78,226.74,20.56678844]
[1732646876477,0.5369152,226.79,226.76,20.56678844]
[1732646876656,0.5369152,226.79,226.75,20.56678844]
[1732646877068,4.9463152,226.79,226.74,20.56678844]
[1732646877966,4.9463152,226.79,226.72,20.56678844]
[1732646877967,25.51310364,226.79,226.72,20.56678844]
[1732646878154,20.56678844,226.78,226.72,20.56678844]
[1732646878357,25.51310364,226.79,226.72,20.56678844]
[1732646878952,25.51310364,226.79,226.68,20.0]
[1732646878953,25.51310364,226.79,226.73,20.56678844]